[Event "41st Jacques-Lemans-Open 2022"]
[Site "St. Veit/Glan"]
[Date "2022.07.10"]
[Round "2.8"]
[White "Huber, Benedikt"]
[Black "Navaratnam, Rohan Shan Tze"]
[Result "1-0"]
[ECO "D30"]
[WhiteElo "2289"]
[BlackElo "2071"]
[Annotator "RC"]
[PlyCount "77"]
[EventDate "2022.07.09"]
[EventType "swiss"]
[EventCountry "AUT"]
[SourceTitle "playchess.com"]
[Source "ChessBase"]
[SourceQuality "1"]
[TimeControl "40/5400+30:1800+30"]

1. d4 {[%emt 0:00:04]} d5 {[%emt 0:00:01]} 2. c4 {[%emt 0:00:11]} e6 {[%emt 0:00:03]} 3. Nf3 {[%emt 0:00:12]} c5 {[%emt 0:00:06]} 4. cxd5 {[%emt 0:00:16]} exd5 {[%emt 0:00:03]} 5. g3 {[%emt 0:00:09]} Nc6 {[%emt 0:00:04]} 6. Bg2 {[%emt 0:00:05]} Nf6 {[%emt 0:00:03]} 7. O-O {[%emt 0:00:08]} Be7 {[%emt 0:00:02]} 8. dxc5 {[%emt 0:00:07]} Bxc5 {[%emt 0:00:05]} 9. a3 {[%emt 0:00:06]} Ne4 {[%emt 0:00:09]} 10. Nfd2 {[%emt 0:00:44]} f5 {[%emt 0:00:10]} 11. Nc3 {[%emt 0:00:19]} Be6 {[%emt 0:00:17]} 12. Nb3 {[%emt 0:00:46]} Bb6 {[%emt 0:00:02]} 13. Na4 {[%emt 0:00:53]} d4 {[%emt 0:00:11]} 14. Nd2 {[%emt 0:00:43]} Nxd2 {[%emt 0:00:12]} 15. Nxb6 {[%emt 0:02:01]} axb6 {[%emt 0:04:11]} 16. Bxd2 {[%emt 0:00:07]} O-O {[%emt 0:02:55]} 17. Bf4 {[%emt 0:00:21]} Rc8 {[%emt 0:04:52]} 18. Qd3 {[%emt 0:14:53]} Bd5 {[%emt 0:01:01]} 19. Rfd1 {[%emt 0:02:55]} Bxg2 {[%emt 0:01:37]} 20. Kxg2 {[%emt 0:00:11]} Qd5+ {[%emt 0:00:09]} 21. Qf3 {[%emt 0:00:06]} Qe6 {[%emt 0:05:59]} 22. e3 {[%emt 0:12:48]} Rfd8 {[%emt 0:03:33]} 23. exd4 {[%emt 0:04:21]} Nxd4 {[%emt 0:01:06]} 24. Qe3 {[%emt 0:11:30]} Qd5+ {[%emt 0:39:28]} 25. Kh3 {[%emt 0:01:45]} Qd7 {[%emt 0:01:00]} 26. Rd2 {[%emt 0:21:31]} g5 {[%emt 0:05:04]} 27. Rxd4 {[%emt 0:00:33]} gxf4 {[%emt 0:07:06]} 28. Rxf4 {[%emt 0:01:13]} Qd5 {[%emt 0:03:54]} 29. Qf3 {[%emt 0:08:18]} Qxf3 {[%emt 0:01:17]} 30. Rxf3 {[%emt 0:00:06]} Rd5 {[%emt 0:00:03]} 31. Re1 {[%emt 0:02:24]} Rc7 {[%emt 0:02:06]} 32. Re6 {[%emt 0:02:23]} Rb5 {[%emt 0:01:18]} 33. b4 {[%emt 0:02:36]} Kf7 {[%emt 0:01:22]} 34. Rh6 {[%emt 0:00:32]} Kg7 {[%emt 0:00:04]} 35. Rd6 {[%emt 0:00:06]} Re7 {[%emt 0:00:30]} 36. Kg2 {[%emt 0:01:42]} Rc7 {[%emt 0:00:13]} 37. Re3 {[%emt 0:02:14]} f4 {[%emt 0:00:35]} 38. gxf4 {[%emt 0:00:09]} Rf7 {[%emt 0:00:07]} 39. Re5 {[%emt 0:00:42]} 1-0

[Event "41st Jacques-Lemans-Open 2022"]
[Site "St. Veit/Glan"]
[Date "2022.07.10"]
[Round "2.9"]
[White "Guetz, Wolfgang"]
[Black "Sandhoefner, Florian"]
[Result "1/2-1/2"]
[ECO "B50"]
[WhiteElo "2034"]
[BlackElo "2289"]
[Annotator "RC"]
[PlyCount "97"]
[EventDate "2022.07.09"]
[EventType "swiss"]
[EventCountry "AUT"]
[SourceTitle "playchess.com"]
[Source "ChessBase"]
[SourceQuality "1"]
[TimeControl "40/5400+30:1800+30"]

1. e4 {[%emt 0:00:02]} c5 {[%emt 0:00:01]} 2. Nf3 {[%emt 0:00:07]} d6 {[%emt 0:00:02]} 3. d4 {[%emt 0:00:06]} Nf6 {[%emt 0:00:04]} 4. Nc3 {[%emt 0:01:05]} cxd4 {[%emt 0:00:02]} 5. Qxd4 {[%emt 0:00:26]} Bd7 {[%emt 0:00:14]} 6. Bg5 {[%emt 0:01:08]} Nc6 {[%emt 0:00:16]} 7. Qd2 {[%emt 0:01:33]} Qa5 {[%emt 0:03:40]} 8. Bd3 {[%emt 0:20:44]} e6 {[%emt 0:02:48]} 9. Bxf6 {[%emt 0:06:28]} gxf6 {[%emt 0:00:05]} 10. O-O {[%emt 0:01:36]} Be7 {[%emt 0:01:13]} 11. Rfe1 {[%emt 0:07:41]} O-O-O {[%emt 0:03:00]} 12. Bf1 {[%emt 0:03:23]} f5 {[%emt 0:04:33]} 13. exf5 {[%emt 0:04:23]} Qxf5 {[%emt 0:00:19]} 14. Nd4 {[%emt 0:01:43]} Qc5 {[%emt 0:07:15]} 15. Ndb5 {[%emt 0:05:28]} d5 {[%emt 0:08:16]} 16. a3 {[%emt 0:10:42]} d4 {[%emt 0:09:20]} 17. Ne4 {[%emt 0:05:14]} Qh5 {[%emt 0:02:46]} 18. Qf4 {[%emt 0:06:07]} e5 {[%emt 0:00:33]} 19. Nbd6+ {[%emt 0:01:25]} Kb8 {[%emt 0:00:41]} 20. Qxf7 {[%emt 0:00:24]} Be8 {[%emt 0:01:38]} 21. Qxh5 {[%emt 0:02:03]} Bxh5 {[%emt 0:00:02]} 22. Nf5 {[%emt 0:00:12]} Bf8 {[%emt 0:00:29]} 23. Bb5 {[%emt 0:01:20]} Bg6 {[%emt 0:01:22]} 24. Nh4 {[%emt 0:01:42]} Be7 {[%emt 0:01:59]} 25. Nxg6 {[%emt 0:00:19]} hxg6 {[%emt 0:00:02]} 26. Bxc6 {[%emt 0:00:25]} bxc6 {[%emt 0:00:03]} 27. Nd2 {[%emt 0:01:30]} Bf6 {[%emt 0:00:49]} 28. Nc4 {[%emt 0:02:00]} Rh5 {[%emt 0:01:32]} 29. Re4 {[%emt 0:01:39]} Kc7 {[%emt 0:01:02]} 30. Rae1 {[%emt 0:00:59]} Rd5 {[%emt 0:00:43]} 31. g4 {[%emt 0:02:02]} Rh4 {[%emt 0:02:13]} 32. f3 {[%emt 0:03:07]} Rc5 {[%emt 0:02:01]} 33. b3 {[%emt 0:00:32]} Rh8 {[%emt 0:04:25]} 34. R1e2 {[%emt 0:01:32]} Rd8 {[%emt 0:00:12]} 35. Rd2 {[%emt 0:03:17]} g5 {[%emt 0:01:00]} 36. Kg2 {[%emt 0:00:29]} Rd7 {[%emt 0:01:01]} 37. a4 {[%emt 0:00:45]} Rd8 {[%emt 0:00:30]} 38. Kf2 {[%emt 0:01:07]} Rh8 {[%emt 0:00:21]} 39. Kg2 {[%emt 0:00:09]} Rd8 {[%emt 0:00:11]} 40. Rde2 {[%emt 0:01:40]} Rdd5 {[%emt 0:04:24]} 41. Kf2 {[%emt 0:33:22]} a5 {[%emt 0:32:15]} 42. Rd2 {[%emt 0:00:00]} Rd8 {[%emt 0:00:00]} 43. Rde2 {[%emt 0:00:00]} d3 {[%emt 0:00:00]} 44. cxd3 {[%emt 0:00:00]} Rxd3 {[%emt 0:00:00]} 45. R4e3 {[%emt 0:00:00]} Rdd5 {[%emt 0:00:00]} 46. Nd2 {[%emt 0:00:00]} Bd8 {[%emt 0:00:00]} 47. Nc4 {[%emt 0:00:00]} Bf6 {[%emt 0:00:00]} 48. Nd2 {[%emt 0:00:00]} Bd8 {[%emt 0:00:00]} 49. Nc4 {[%emt 0:00:00]} 1/2-1/2

[Event "41st Jacques-Lemans-Open 2022"]
[Site "St. Veit/Glan"]
[Date "2022.07.10"]
[Round "2.10"]
[White "Higatsberger, Michael"]
[Black "Novosel, Lovro"]
[Result "1-0"]
[ECO "B91"]
[WhiteElo "2021"]
[BlackElo "2255"]
[Annotator "RC"]
[PlyCount "135"]
[EventDate "2022.07.09"]
[EventType "swiss"]
[EventCountry "AUT"]
[SourceTitle "playchess.com"]
[Source "ChessBase"]
[SourceQuality "1"]
[TimeControl "40/5400+30:1800+30"]

1. e4 {[%emt 0:00:03]} c5 {[%emt 0:00:14]} 2. Nf3 {[%emt 0:00:06]} d6 {[%emt 0:00:05]} 3. d4 {[%emt 0:00:15]} cxd4 {[%emt 0:00:15]} 4. Nxd4 {[%emt 0:00:07]} Nf6 {[%emt 0:00:06]} 5. Nc3 {[%emt 0:00:05]} a6 {[%emt 0:00:03]} 6. g3 {[%emt 0:00:19]} e6 {[%emt 0:01:05]} 7. Bg2 {[%emt 0:00:07]} Be7 {[%emt 0:00:06]} 8. O-O {[%emt 0:00:06]} O-O {[%emt 0:00:04]} 9. Be3 {[%emt 0:00:17]} Qc7 {[%emt 0:01:10]} 10. g4 {[%emt 0:04:02]} Nfd7 {[%emt 0:04:57]} 11. f4 {[%emt 0:02:05]} Nb6 {[%emt 0:03:07]} 12. Kh1 {[%emt 0:05:05]} Nc4 {[%emt 0:00:30]} 13. Bc1 {[%emt 0:00:08]} b5 {[%emt 0:02:58]} 14. g5 {[%emt 0:05:43]} b4 {[%emt 0:03:56]} 15. Nce2 {[%emt 0:01:19]} Re8 {[%emt 0:02:08]} 16. c3 {[%emt 0:02:53]} bxc3 {[%emt 0:01:52]} 17. Nxc3 {[%emt 0:00:09]} Nd7 {[%emt 0:01:26]} 18. b3 {[%emt 0:02:31]} Na5 {[%emt 0:08:09]} 19. Bd2 {[%emt 0:05:59]} Bb7 {[%emt 0:05:20]} 20. Rc1 {[%emt 0:01:56]} Qd8 {[%emt 0:01:57]} 21. Qe2 {[%emt 0:08:11]} Rc8 {[%emt 0:02:21]} 22. Na4 {[%emt 0:01:10]} Nc5 {[%emt 0:02:36]} 23. Nxc5 {[%emt 0:03:15]} dxc5 {[%emt 0:00:21]} 24. Nf3 {[%emt 0:01:29]} Nc6 {[%emt 0:00:47]} 25. Bc3 {[%emt 0:01:47]} Qb6 {[%emt 0:02:55]} 26. Ne5 {[%emt 0:01:35]} Qb5 {[%emt 0:07:53]} 27. Qb2 {[%emt 0:05:37]} Nxe5 {[%emt 0:05:21]} 28. Bxe5 {[%emt 0:00:11]} Bf8 {[%emt 0:00:04]} 29. Rfd1 {[%emt 0:09:37]} Red8 {[%emt 0:01:51]} 30. Qc2 {[%emt 0:09:02]} Qb4 {[%emt 0:16:44]} 31. h4 {[%emt 0:01:21]} Rxd1+ {[%emt 0:00:46]} 32. Rxd1 {[%emt 0:00:21]} c4 {[%emt 0:00:37]} 33. Kh2 {[%emt 0:02:02]} c3 {[%emt 0:06:13]} 34. Rd4 {[%emt 0:01:56]} Qa5 {[%emt 0:02:23]} 35. Bf1 {[%emt 0:07:54]} Bb4 {[%emt 0:04:25]} 36. Bd3 {[%emt 0:01:26]} Qb6 {[%emt 0:01:59]} 37. Kg3 {[%emt 0:01:53]} Rc5 {[%emt 0:01:05]} 38. Rxb4 {[%emt 0:03:41]} Qxb4 {[%emt 0:00:31]} 39. Bd6 {[%emt 0:00:07]} Qd4 {[%emt 0:01:08]} 40. Bxc5 {[%emt 0:00:07]} Qxc5 {[%emt 0:00:03]} 41. Kf3 {[%emt 0:33:44]} Qd4 {[%emt 0:32:24]} 42. Qe2 {[%emt 0:07:04]} Qg1 {[%emt 0:07:38]} 43. Qf2 {[%emt 0:00:45]} Qd1+ {[%emt 0:00:20]} 44. Ke3 {[%emt 0:00:11]} Qa1 {[%emt 0:00:00]} 45. h5 {[%emt 0:00:00]} g6 {[%emt 0:00:00]} 46. h6 {[%emt 0:00:00]} Bc6 {[%emt 0:00:00]} 47. a4 {[%emt 0:00:00]} Qa3 {[%emt 0:00:00]} 48. Bc2 {[%emt 0:00:00]} Qd6 {[%emt 0:00:00]} 49. Qe1 {[%emt 0:00:00]} e5 {[%emt 0:00:00]} 50. Qxc3 {[%emt 0:00:00]} exf4+ {[%emt 0:00:00]} 51. Kf3 {[%emt 0:00:00]} Kf8 {[%emt 0:00:36]} 52. b4 {[%emt 0:02:08]} Qd7 {[%emt 0:01:13]} 53. Kxf4 {[%emt 0:00:58]} Qc7+ {[%emt 0:01:40]} 54. Qe5 {[%emt 0:01:06]} Qb6 {[%emt 0:00:37]} 55. Qc5+ {[%emt 0:00:41]} Qxc5 {[%emt 0:00:33]} 56. bxc5 {[%emt 0:00:37]} a5 {[%emt 0:00:51]} 57. Ke5 {[%emt 0:01:05]} Ke7 {[%emt 0:00:33]} 58. Bb3 {[%emt 0:00:45]} Bd7 {[%emt 0:00:40]} 59. Kd4 {[%emt 0:01:31]} f6 {[%emt 0:01:09]} 60. gxf6+ {[%emt 0:02:08]} Kxf6 {[%emt 0:00:30]} 61. e5+ {[%emt 0:00:50]} Kf5 {[%emt 0:00:45]} 62. Bc2+ {[%emt 0:00:43]} Kg5 {[%emt 0:01:00]} 63. Kd5 {[%emt 0:00:36]} Kxh6 {[%emt 0:00:45]} 64. Kd6 {[%emt 0:00:35]} Be8 {[%emt 0:01:06]} 65. c6 {[%emt 0:00:38]} Bxc6 {[%emt 0:00:37]} 66. Kxc6 {[%emt 0:00:32]} Kg7 {[%emt 0:00:39]} 67. e6 {[%emt 0:00:38]} h5 {[%emt 0:00:40]} 68. e7 {[%emt 0:00:36]} 1-0

[Event "41st Jacques-Lemans-Open 2022"]
[Site "St. Veit/Glan"]
[Date "2022.07.10"]
[Round "2.11"]
[White "Raeke, Philipp"]
[Black "Windhager, Hannes"]
[Result "0-1"]
[ECO "D00"]
[WhiteElo "1908"]
[BlackElo "2244"]
[Annotator "RC"]
[PlyCount "127"]
[EventDate "2022.07.09"]
[EventType "swiss"]
[EventCountry "AUT"]
[SourceTitle "playchess.com"]
[Source "ChessBase"]
[SourceQuality "1"]
[TimeControl "40/5400+30:1800+30"]

1. d4 {[%emt 0:00:04]} d5 {[%emt 0:00:06]} 2. Nc3 {[%emt 0:00:29]} Nf6 {[%emt 0:00:30]} 3. Bf4 {[%emt 0:00:18]} e6 {[%emt 0:00:48]} 4. e3 {[%emt 0:04:51]} Bb4 {[%emt 0:00:26]} 5. Bd3 {[%emt 0:03:39]} c5 {[%emt 0:01:09]} 6. a3 {[%emt 0:10:32]} Bxc3+ {[%emt 0:00:38]} 7. bxc3 {[%emt 0:00:11]} Qa5 {[%emt 0:03:10]} 8. dxc5 {[%emt 0:18:18]} Qxc3+ {[%emt 0:00:30]} 9. Kf1 {[%emt 0:02:57]} Qxc5 {[%emt 0:01:33]} 10. Be5 {[%emt 0:02:56]} Nc6 {[%emt 0:03:40]} 11. Bb2 {[%emt 0:06:38]} e5 {[%emt 0:08:09]} 12. a4 {[%emt 0:07:51]} Bg4 {[%emt 0:02:12]} 13. Qb1 {[%emt 0:03:30]} e4 {[%emt 0:22:06]} 14. Bb5 {[%emt 0:05:45]} a6 {[%emt 0:04:11]} 15. Ba3 {[%emt 0:08:23]} Qb6 {[%emt 0:01:13]} 16. Bxc6+ {[%emt 0:00:36]} Qxc6 {[%emt 0:00:07]} 17. h3 {[%emt 0:01:43]} Qc4+ {[%emt 0:18:19]} 18. Ke1 {[%emt 0:00:07]} Qc3+ {[%emt 0:05:30]} 19. Kf1 {[%emt 0:00:26]} Qc4+ {[%emt 0:02:02]} 20. Ke1 {[%emt 0:00:08]} Be6 {[%emt 0:05:37]} 21. Ne2 {[%emt 0:04:33]} b5 {[%emt 0:04:49]} 22. Bb4 {[%emt 0:03:00]} bxa4 {[%emt 0:02:28]} 23. Bd6 {[%emt 0:04:09]} Kd7 {[%emt 0:03:54]} 24. Be5 {[%emt 0:02:01]} Rhc8 {[%emt 0:01:42]} 25. Nc3 {[%emt 0:05:14]} d4 {[%emt 0:02:43]} 26. Nxa4 {[%emt 0:01:22]} Ke8 {[%emt 0:00:53]} 27. Nb6 {[%emt 0:02:33]} Qc3+ {[%emt 0:01:12]} 28. Kf1 {[%emt 0:00:02]} Rab8 {[%emt 0:01:59]} 29. Bxd4 {[%emt 0:01:57]} Qxc2 {[%emt 0:00:28]} 30. Qxc2 {[%emt 0:00:22]} Rxc2 {[%emt 0:00:01]} 31. Kg1 {[%emt 0:00:29]} Rc6 {[%emt 0:02:18]} 32. Na4 {[%emt 0:00:54]} Rb5 {[%emt 0:00:46]} 33. Kh2 {[%emt 0:00:07]} Ke7 {[%emt 0:00:27]} 34. Nc3 {[%emt 0:00:16]} Rb3 {[%emt 0:00:26]} 35. Rhc1 {[%emt 0:00:36]} Kd7 {[%emt 0:01:17]} 36. Bxf6 {[%emt 0:00:23]} gxf6 {[%emt 0:00:01]} 37. Nxe4 {[%emt 0:00:19]} Rxc1 {[%emt 0:00:12]} 38. Rxc1 {[%emt 0:00:02]} Rb2 {[%emt 0:01:02]} 39. Kg3 {[%emt 0:00:19]} a5 {[%emt 0:00:24]} 40. Ra1 {[%emt 0:01:25]} Rb5 {[%emt 0:00:41]} 41. Nxf6+ {[%emt 0:30:57]} Ke7 {[%emt 0:00:48]} 42. Ne4 {[%emt 0:00:00]} Bd7 {[%emt 0:05:11]} 43. h4 {[%emt 0:00:00]} Bc6 {[%emt 0:02:12]} 44. Nc3 {[%emt 0:00:00]} Rc5 {[%emt 0:01:59]} 45. Ne2 {[%emt 0:00:00]} a4 {[%emt 0:02:08]} 46. Nd4 {[%emt 0:00:00]} Bd7 {[%emt 0:00:36]} 47. Kf4 {[%emt 0:00:00]} Kd6 {[%emt 0:05:23]} 48. Ke4 {[%emt 0:00:00]} Rc3 49. g4 {[%emt 0:00:00]} a3 {[%emt 0:06:17]} 50. g5 {[%emt 0:00:00]} Ba4 {[%emt 0:03:47]} 51. h5 {[%emt 0:00:24]} Kc5 {[%emt 0:01:09]} 52. Ne2 {[%emt 0:05:01]} Rc4+ {[%emt 0:02:48]} 53. Ke5 {[%emt 0:00:31]} Kb4 {[%emt 0:00:36]} 54. Nd4 {[%emt 0:00:18]} Rc5+ {[%emt 0:02:18]} 55. Kf6 {[%emt 0:00:13]} Bb3 {[%emt 0:01:03]} 56. f4 {[%emt 0:00:30]} Bd5 {[%emt 0:00:57]} 57. Kg7 {[%emt 0:01:06]} a2 {[%emt 0:00:56]} 58. Kxh7 {[%emt 0:00:30]} Kc3 {[%emt 0:00:24]} 59. g6 {[%emt 0:00:32]} fxg6 {[%emt 0:00:21]} 60. hxg6 {[%emt 0:00:06]} Kb2 {[%emt 0:00:27]} 61. Rxa2+ {[%emt 0:00:56]} Bxa2 {[%emt 0:00:07]} 62. f5 {[%emt 0:00:21]} Kc3 {[%emt 0:01:29]} 63. g7 {[%emt 0:00:11]} Rc8 {[%emt 0:00:29]} 64. Kg6 0-1

[Event "41st Jacques-Lemans-Open 2022"]
[Site "St. Veit/Glan"]
[Date "2022.07.10"]
[Round "2.12"]
[White "Riemelmoser, Franz"]
[Black "Mayrhuber, Tobias"]
[Result "1-0"]
[ECO "A13"]
[WhiteElo "2237"]
[BlackElo "2010"]
[Annotator "RC"]
[PlyCount "71"]
[EventDate "2022.07.09"]
[EventType "swiss"]
[EventCountry "AUT"]
[SourceTitle "playchess.com"]
[Source "ChessBase"]
[SourceQuality "1"]
[TimeControl "40/5400+30:1800+30"]

1. c4 {[%emt 0:00:04]} e6 {[%emt 0:00:06]} 2. Nf3 {[%emt 0:00:09]} d5 {[%emt 0:00:14]} 3. e3 {[%emt 0:00:15]} Nf6 {[%emt 0:00:07]} 4. Nc3 {[%emt 0:00:10]} c6 {[%emt 0:01:50]} 5. b3 {[%emt 0:04:02]} Bd6 {[%emt 0:01:16]} 6. Qc2 {[%emt 0:01:00]} O-O {[%emt 0:00:26]} 7. Bb2 {[%emt 0:00:09]} Nbd7 {[%emt 0:05:42]} 8. Be2 {[%emt 0:00:57]} a6 {[%emt 0:03:55]} 9. d4 {[%emt 0:02:08]} e5 {[%emt 0:03:46]} 10. cxd5 {[%emt 0:00:55]} cxd5 {[%emt 0:00:24]} 11. dxe5 {[%emt 0:00:14]} Nxe5 {[%emt 0:00:06]} 12. O-O {[%emt 0:01:26]} Nc6 {[%emt 0:08:25]} 13. Rfd1 {[%emt 0:02:19]} Be6 {[%emt 0:08:05]} 14. Rac1 {[%emt 0:02:45]} h6 {[%emt 0:05:15]} 15. e4 {[%emt 0:05:28]} Rc8 {[%emt 0:15:58]} 16. Nxd5 {[%emt 0:01:05]} Nxd5 {[%emt 0:02:09]} 17. exd5 {[%emt 0:00:20]} Nb4 {[%emt 0:06:33]} 18. Qe4 {[%emt 0:04:00]} Rxc1 {[%emt 0:01:16]} 19. Rxc1 {[%emt 0:06:56]} Nxd5 {[%emt 0:01:36]} 20. Bd3 {[%emt 0:00:38]} g6 {[%emt 0:01:26]} 21. Qd4 {[%emt 0:00:14]} f6 {[%emt 0:01:04]} 22. Bxg6 {[%emt 0:00:34]} Nf4 {[%emt 0:01:51]} 23. Re1 {[%emt 0:05:20]} Nxg6 {[%emt 0:11:10]} 24. Rxe6 {[%emt 0:00:18]} Be5 {[%emt 0:00:14]} 25. Nxe5 {[%emt 0:01:47]} Nf4 {[%emt 0:03:55]} 26. Nd7 {[%emt 0:05:25]} Nxe6 {[%emt 0:01:41]} 27. Qg4+ {[%emt 0:00:21]} Ng7 {[%emt 0:00:54]} 28. Nxf8 {[%emt 0:01:04]} Kxf8 {[%emt 0:01:05]} 29. h3 {[%emt 0:01:01]} Ne8 {[%emt 0:02:20]} 30. Qg6 {[%emt 0:03:34]} Qd1+ {[%emt 0:01:35]} 31. Kh2 {[%emt 0:00:09]} Qd6+ {[%emt 0:00:08]} 32. g3 {[%emt 0:00:16]} b5 {[%emt 0:01:07]} 33. Qxh6+ {[%emt 0:00:29]} Kf7 {[%emt 0:01:40]} 34. Qh5+ {[%emt 0:00:40]} Kf8 {[%emt 0:00:34]} 35. Bc1 {[%emt 0:00:27]} Qd4 {[%emt 0:01:20]} 36. Be3 1-0

[Event "41st Jacques-Lemans-Open 2022"]
[Site "St. Veit/Glan"]
[Date "2022.07.10"]
[Round "2.13"]
[White "Moewisch, Dave"]
[Black "Moeller, Dustin"]
[Result "0-1"]
[ECO "C54"]
[WhiteElo "1941"]
[BlackElo "2237"]
[Annotator "RC"]
[PlyCount "114"]
[EventDate "2022.07.09"]
[EventType "swiss"]
[EventCountry "AUT"]
[SourceTitle "playchess.com"]
[Source "ChessBase"]
[SourceQuality "1"]
[TimeControl "40/5400+30:1800+30"]

1. e4 {[%emt 0:00:05]} e5 {[%emt 0:01:26]} 2. Nf3 {[%emt 0:00:14]} Nc6 {[%emt 0:00:10]} 3. Bc4 {[%emt 0:00:19]} Bc5 {[%emt 0:00:49]} 4. c3 {[%emt 0:00:21]} Nf6 {[%emt 0:00:16]} 5. d4 {[%emt 0:00:29]} exd4 {[%emt 0:00:37]} 6. e5 {[%emt 0:00:09]} d5 {[%emt 0:02:06]} 7. Bb5 {[%emt 0:00:09]} Ne4 {[%emt 0:00:18]} 8. cxd4 {[%emt 0:00:16]} Bb6 {[%emt 0:02:53]} 9. Nc3 {[%emt 0:02:37]} O-O {[%emt 0:02:14]} 10. Be3 {[%emt 0:03:24]} Bg4 {[%emt 0:00:57]} 11. h3 {[%emt 0:02:19]} Bh5 {[%emt 0:00:06]} 12. Qc2 {[%emt 0:03:31]} Ba5 {[%emt 0:00:07]} 13. a3 {[%emt 0:18:39]} Bxc3+ {[%emt 0:28:11]} 14. bxc3 {[%emt 0:00:32]} f5 {[%emt 0:02:06]} 15. exf6 {[%emt 0:05:41]} Qxf6 {[%emt 0:01:39]} 16. Bxc6 {[%emt 0:06:47]} Qxc6 {[%emt 0:02:22]} 17. Ne5 {[%emt 0:00:47]} Qa6 {[%emt 0:03:05]} 18. g4 {[%emt 0:08:51]} Be8 {[%emt 0:01:17]} 19. a4 {[%emt 0:07:00]} Qa5 {[%emt 0:03:32]} 20. O-O {[%emt 0:03:07]} Qxc3 {[%emt 0:00:50]} 21. Qb1 {[%emt 0:03:44]} Rb8 {[%emt 0:04:41]} 22. a5 {[%emt 0:01:44]} Nd2 {[%emt 0:09:21]} 23. Qe1 {[%emt 0:02:43]} Bb5 {[%emt 0:05:53]} 24. Qxd2 {[%emt 0:05:06]} Qxd2 {[%emt 0:00:06]} 25. Bxd2 {[%emt 0:00:05]} Bxf1 {[%emt 0:00:05]} 26. Nd7 {[%emt 0:02:56]} Bxh3 {[%emt 0:00:37]} 27. Nxf8 {[%emt 0:00:28]} Rxf8 {[%emt 0:00:22]} 28. g5 {[%emt 0:02:06]} Bf5 {[%emt 0:00:38]} 29. Rc1 {[%emt 0:03:32]} Rc8 {[%emt 0:02:26]} 30. Bf4 {[%emt 0:00:50]} c6 {[%emt 0:00:18]} 31. Bd6 {[%emt 0:00:06]} b6 {[%emt 0:01:03]} 32. Re1 {[%emt 0:00:29]} c5 {[%emt 0:04:32]} 33. Re7 {[%emt 0:02:28]} c4 {[%emt 0:01:38]} 34. Rxa7 {[%emt 0:01:05]} bxa5 {[%emt 0:09:31]} 35. Rxa5 {[%emt 0:00:16]} Be4 {[%emt 0:01:49]} 36. Rc5 {[%emt 0:03:01]} Ra8 {[%emt 0:00:59]} 37. Rc7 {[%emt 0:01:02]} h5 {[%emt 0:04:18]} 38. gxh6 {[%emt 0:04:16]} gxh6 {[%emt 0:00:05]} 39. Kh2 {[%emt 0:00:23]} Ra6 {[%emt 0:00:59]} 40. Bg3 {[%emt 0:05:11]} Ra1 {[%emt 0:02:03]} 41. Be5 {[%emt 0:31:00]} Ra3 {[%emt 0:03:57]} 42. Rg7+ {[%emt 0:00:00]} Kf8 {[%emt 0:00:06]} 43. Bd6+ {[%emt 0:00:00]} Kxg7 {[%emt 0:00:05]} 44. Bxa3 {[%emt 0:00:00]} Kf6 {[%emt 0:00:05]} 45. Kg3 {[%emt 0:00:00]} Kf5 {[%emt 0:00:03]} 46. f3 {[%emt 0:00:00]} Bc2 {[%emt 0:01:03]} 47. Kf2 {[%emt 0:00:00]} Bd1 {[%emt 0:04:22]} 48. Bc1 {[%emt 0:00:00]} h5 {[%emt 0:00:06]} 49. Ba3 {[%emt 0:00:00]} Ke6 {[%emt 0:00:14]} 50. Bc1 {[%emt 0:00:00]} Kd6 {[%emt 0:00:12]} 51. Bg5 {[%emt 0:00:00]} Kc6 {[%emt 0:00:17]} 52. f4 {[%emt 0:00:00]} Bg4 {[%emt 0:00:07]} 53. Ke3 {[%emt 0:02:06]} Kb5 {[%emt 0:00:16]} 54. Kd2 {[%emt 0:01:30]} Kb4 {[%emt 0:00:06]} 55. Kc2 {[%emt 0:00:34]} Bf5+ {[%emt 0:00:12]} 56. Kc1 {[%emt 0:00:53]} Kc3 {[%emt 0:00:34]} 57. Bf6 {[%emt 0:00:12]} Kd3 {[%emt 0:00:06]} 0-1

[Event "41st Jacques-Lemans-Open 2022"]
[Site "St. Veit/Glan"]
[Date "2022.07.10"]
[Round "2.14"]
[White "Vojinov, Danijel"]
[Black "Toefferl, Heimo"]
[Result "1-0"]
[ECO "A00"]
[WhiteElo "2201"]
[BlackElo "2003"]
[Annotator "RC"]
[PlyCount "81"]
[EventDate "2022.07.09"]
[EventType "swiss"]
[EventCountry "AUT"]
[SourceTitle "playchess.com"]
[Source "ChessBase"]
[SourceQuality "1"]
[TimeControl "40/5400+30:1800+30"]

1. b4 {[%emt 0:00:05]} c6 {[%emt 0:02:11]} 2. e3 {[%emt 0:01:02]} d5 {[%emt 0:00:36]} 3. Nf3 {[%emt 0:00:43]} Bg4 {[%emt 0:00:18]} 4. h3 {[%emt 0:02:08]} Bh5 {[%emt 0:00:16]} 5. c4 {[%emt 0:01:09]} e6 {[%emt 0:00:27]} 6. Bb2 {[%emt 0:00:49]} f6 {[%emt 0:00:24]} 7. cxd5 {[%emt 0:01:45]} cxd5 {[%emt 0:00:24]} 8. Qa4+ {[%emt 0:01:57]} Nd7 {[%emt 0:00:39]} 9. Nc3 {[%emt 0:03:56]} a6 {[%emt 0:01:08]} 10. b5 {[%emt 0:06:17]} a5 {[%emt 0:06:09]} 11. Be2 {[%emt 0:07:15]} Nc5 {[%emt 0:05:29]} 12. Qd1 {[%emt 0:09:17]} Bxf3 {[%emt 0:03:50]} 13. gxf3 {[%emt 0:00:16]} Nh6 {[%emt 0:01:15]} 14. Rg1 {[%emt 0:03:25]} Qd6 {[%emt 0:04:33]} 15. f4 {[%emt 0:02:12]} Nf5 {[%emt 0:03:48]} 16. d4 {[%emt 0:03:11]} Nd7 {[%emt 0:06:04]} 17. Bd3 {[%emt 0:02:00]} g6 {[%emt 0:01:06]} 18. Bxf5 {[%emt 0:02:34]} exf5 {[%emt 0:00:16]} 19. Kf1 {[%emt 0:09:13]} Nb6 {[%emt 0:00:36]} 20. Rc1 {[%emt 0:01:27]} Nc4 {[%emt 0:01:43]} 21. Qe2 {[%emt 0:03:31]} Rc8 {[%emt 0:01:12]} 22. Ba1 {[%emt 0:01:50]} Kf7 {[%emt 0:01:51]} 23. Kg2 {[%emt 0:00:40]} h5 {[%emt 0:00:47]} 24. Qf3 {[%emt 0:01:04]} Ke6 {[%emt 0:01:03]} 25. Kh1 {[%emt 0:01:23]} Rh6 {[%emt 0:03:24]} 26. Na4 {[%emt 0:02:50]} b6 {[%emt 0:00:13]} 27. Rc2 {[%emt 0:06:25]} Be7 {[%emt 0:02:13]} 28. Rgc1 {[%emt 0:01:09]} Qd7 {[%emt 0:03:40]} 29. Nb2 {[%emt 0:07:01]} Qxb5 {[%emt 0:01:09]} 30. Nxc4 {[%emt 0:05:35]} dxc4 {[%emt 0:00:33]} 31. e4 {[%emt 0:01:54]} fxe4 {[%emt 0:00:58]} 32. Qxe4+ {[%emt 0:00:11]} Kd6 {[%emt 0:00:37]} 33. Re2 {[%emt 0:01:45]} Qd7 {[%emt 0:02:32]} 34. f5 {[%emt 0:01:24]} g5 {[%emt 0:02:27]} 35. Rb1 {[%emt 0:01:33]} Rb8 {[%emt 0:01:05]} 36. Rb5 {[%emt 0:01:53]} Qb7 {[%emt 0:02:48]} 37. d5 {[%emt 0:01:22]} Rh7 {[%emt 0:01:47]} 38. Bd4 {[%emt 0:02:20]} Qa6 {[%emt 0:07:05]} 39. Qe6+ {[%emt 0:01:08]} Kc7 {[%emt 0:00:03]} 40. Qc6+ {[%emt 0:00:48]} Kd8 {[%emt 0:00:34]} 41. Rxb6 {[%emt 0:31:05]} 1-0